[Event "Swedish Chess Championship 2019: Mastarklassen-Elit"]
[Site "Stiga Sports Arena, Arenatorget 1, Eskilstuna, Sweden"]
[Date "2019.07.14"]
[Round "9.4"]
[White "Ernst, Thomas"]
[Black "Lindberg, Bengt"]
[Result "0-1"]
[TimeControl "90 minutes for 40 moves + 30 minutes for the rest of the game + 30 seconds per move from move one"]
[WhiteTitle "GM"]
[BlackTitle "IM"]
[WhiteFideId "1700065"]
[BlackFideId "1700359"]
[WhiteElo "2335"]
[BlackElo "2384"]

1. e4 {[%clk 01:30:30]} {[%emt 00:02:01]} c5 {[%clk 01:30:30]} {[%emt
00:00:04]} 2. Nf3 {[%clk 01:30:30]} {[%emt 00:00:09]} e6 {[%clk 01:30:30]}
{[%emt 00:00:16]} 3. d4 {[%clk 01:30:30]} {[%emt 00:00:06]} cxd4 {[%clk
01:30:30]} {[%emt 00:00:05]} 4. Nxd4 {[%clk 01:30:30]} {[%emt 00:00:05]} Nc6
{[%clk 01:30:30]} {[%emt 00:00:24]} 5. Nc3 {[%clk 01:30:30]} {[%emt 00:00:11]}
Qc7 {[%clk 01:30:30]} {[%emt 00:00:15]} 6. g3 {[%clk 01:30:30]} {[%emt
00:00:40]} a6 {[%clk 01:30:30]} {[%emt 00:00:12]} 7. Bg2 {[%clk 01:30:30]}
{[%emt 00:00:17]} Nge7 {[%clk 01:30:30]} {[%emt 00:01:14]} 8. Nde2 {[%clk
01:30:06]} {[%emt 00:00:27]} b5 {[%clk 01:28:52]} {[%emt 00:02:07]} 9. O-O
{[%clk 01:29:13]} {[%emt 00:01:24]} Bb7 {[%clk 01:28:53]} {[%emt 00:00:30]} 10.
b3 {[%clk 01:24:48]} {[%emt 00:04:56]} Ng6 {[%clk 01:26:23]} {[%emt 00:02:58]}
11. Be3 {[%clk 01:22:27]} {[%emt 00:02:52]} Rc8 {[%clk 01:15:19]} {[%emt
00:11:33]} 12. f4 {[%clk 01:22:06]} {[%emt 00:00:51]} Ba3 {[%clk 01:10:29]}
{[%emt 00:05:20]} 13. Qd2 {[%clk 01:18:22]} {[%emt 00:04:14]} Nce7 {[%clk
00:58:29]} {[%emt 00:12:30]} 14. Rad1 {[%clk 01:15:02]} {[%emt 00:03:50]} f5
{[%clk 00:50:51]} {[%emt 00:08:08]} 15. Qd4 {[%clk 01:01:28]} {[%emt 00:14:04]}
fxe4 {[%clk 00:40:44]} {[%emt 00:10:38]} 16. Bxe4 {[%clk 01:01:50]} {[%emt
00:00:08]} Bxe4 {[%clk 00:39:38]} {[%emt 00:01:36]} 17. Qxe4 {[%clk 01:02:08]}
{[%emt 00:00:12]} O-O {[%clk 00:38:52]} {[%emt 00:01:15]} 18. Rd2 {[%clk
01:01:30]} {[%emt 00:01:08]} Nf5 {[%clk 00:37:14]} {[%emt 00:02:09]} 19. Bf2
{[%clk 01:01:22]} {[%emt 00:00:37]} Bc5 {[%clk 00:35:07]} {[%emt 00:02:38]} 20.
a4 {[%clk 00:54:21]} {[%emt 00:07:31]} b4 {[%clk 00:29:10]} {[%emt 00:06:27]}
21. Nd1 {[%clk 00:54:32]} {[%emt 00:00:17]} Bxf2+ {[%clk 00:25:54]} {[%emt
00:03:46]} 22. Rxf2 {[%clk 00:51:04]} {[%emt 00:03:59]} a5 {[%clk 00:24:21]}
{[%emt 00:02:03]} 23. Ne3 {[%clk 00:49:04]} {[%emt 00:02:30]} Nxe3 {[%clk
00:24:13]} {[%emt 00:00:39]} 24. Qxe3 {[%clk 00:49:29]} {[%emt 00:00:05]} Ne7
{[%clk 00:23:01]} {[%emt 00:01:41]} 25. Qd3 {[%clk 00:42:14]} {[%emt 00:07:43]}
Nd5 {[%clk 00:21:30]} {[%emt 00:02:03]} 26. Nd4 {[%clk 00:41:25]} {[%emt
00:01:19]} g6 {[%clk 00:14:02]} {[%emt 00:07:57]} 27. Nb5 {[%clk 00:40:03]}
{[%emt 00:01:53]} Qb6 {[%clk 00:11:29]} {[%emt 00:03:02]} 28. Qe4 {[%clk
00:33:36]} {[%emt 00:06:56]} Rc5 {[%clk 00:09:42]} {[%emt 00:02:18]} 29. Qd4
{[%clk 00:31:21]} {[%emt 00:02:45]} Rfc8 {[%clk 00:07:16]} {[%emt 00:02:57]} 30.
Rfe2 {[%clk 00:29:13]} {[%emt 00:02:38]} R8c6 {[%clk 00:05:02]} {[%emt
00:02:44]} 31. Rf2 {[%clk 00:25:51]} {[%emt 00:03:51]} Qb8 {[%clk 00:04:58]}
{[%emt 00:00:35]} 32. Kf1 {[%clk 00:10:02]} {[%emt 00:16:18]} Qf8 {[%clk
00:05:00]} {[%emt 00:00:28]} 33. Na7 {[%clk 00:07:50]} {[%emt 00:02:42]} Rc7
{[%clk 00:04:52]} {[%emt 00:00:39]} 34. Nb5 {[%clk 00:08:11]} {[%emt 00:00:09]}
Rc8 {[%clk 00:04:28]} {[%emt 00:00:54]} 35. Na7 {[%clk 00:07:32]} {[%emt
00:01:09]} Re8 {[%clk 00:04:48]} {[%emt 00:00:10]} 36. Nb5 {[%clk 00:07:43]}
{[%emt 00:00:20]} Ra8 {[%clk 00:03:24]} {[%emt 00:01:54]} 37. Kg1 {[%clk
00:07:28]} {[%emt 00:00:44]} Rc6 {[%clk 00:03:36]} {[%emt 00:00:17]} 38. Na7
{[%emt 00:02:25]} Rc3 {[%clk 00:03:11]} {[%emt 00:00:52]} 39. Nb5 {[%clk
00:05:58]} {[%emt 00:00:09]} Re3 {[%clk 00:02:14]} {[%emt 00:01:26]} 40. Rfe2
{[%clk 00:04:49]} {[%emt 00:01:40]} Rxe2 {[%clk 00:02:14]} {[%emt 00:00:30]} 41.
Rxe2 {[%clk 00:05:13]} {[%emt 00:00:06]} Rc8 {[%clk 00:01:09]} {[%emt
00:01:34]} 42. Rd2 {[%clk 00:28:51]} {[%emt 00:06:53]} Rc5 {[%clk 00:24:13]}
{[%emt 00:07:26]} 43. Na7 {[%clk 00:25:48]} {[%emt 00:03:34]} h6 {[%clk
00:23:22]} {[%emt 00:01:20]} 44. Nb5 {[%clk 00:25:23]} {[%emt 00:00:56]} Kh7
{[%clk 00:23:44]} {[%emt 00:00:07]} 45. Rf2 {[%clk 00:23:44]} {[%emt 00:02:09]}
Nf6 {[%clk 00:21:14]} {[%emt 00:02:59]} 46. Qd6 {[%clk 00:22:56]} {[%emt
00:01:18]} Kg7 {[%clk 00:21:34]} {[%emt 00:00:11]} 47. Rd2 {[%clk 00:22:54]}
{[%emt 00:00:33]} Rc6 {[%clk 00:17:46]} {[%emt 00:04:16]} 48. Qxf8+ {[%clk
00:22:39]} {[%emt 00:00:46]} Kxf8 {[%clk 00:18:15]} {[%emt 00:00:02]} 49. Nd6
{[%clk 00:22:58]} {[%emt 00:00:11]} Ke7 {[%clk 00:17:58]} {[%emt 00:00:45]} 50.
Nc4 {[%clk 00:23:19]} {[%emt 00:00:11]} Ra6 {[%clk 00:16:36]} {[%emt 00:01:51]}
51. Kg2 {[%clk 00:22:41]} {[%emt 00:01:09]} g5 {[%clk 00:15:54]} {[%emt
00:01:11]} 52. Kf3 {[%clk 00:22:27]} {[%emt 00:00:45]} d5 {[%clk 00:13:33]}
{[%emt 00:02:51]} 53. Ne5 {[%clk 00:22:07]} {[%emt 00:00:49]} Ne4 {[%clk
00:13:00]} {[%emt 00:01:04]} 54. Rg2 {[%clk 00:21:40]} {[%emt 00:00:57]} Ra8
{[%clk 00:13:05]} {[%emt 00:00:25]} 55. h4 {[%clk 00:21:15]} {[%emt 00:00:54]}
Rc8 {[%clk 00:12:54]} {[%emt 00:00:41]} 56. hxg5 {[%clk 00:20:09]} {[%emt
00:01:37]} hxg5 {[%clk 00:13:18]} {[%emt 00:00:06]} 57. fxg5 {[%clk 00:20:31]}
{[%emt 00:00:09]} Nxg5+ {[%clk 00:13:33]} {[%emt 00:00:15]} 58. Kf4 {[%clk
00:20:08]} {[%emt 00:00:53]} Ne4 {[%clk 00:12:02]} {[%emt 00:02:01]} 59. g4
{[%clk 00:20:08]} {[%emt 00:00:30]} Rf8+ {[%clk 00:12:03]} {[%emt 00:00:29]} 60.
Ke3 {[%clk 00:20:31]} {[%emt 00:00:07]} Kd6 {[%clk 00:11:50]} {[%emt 00:00:42]}
61. Nc4+ {[%clk 00:19:00]} {[%emt 00:02:02]} Kc5 {[%clk 00:11:26]} {[%emt
00:00:53]} 62. Nd2 {[%clk 00:17:49]} {[%emt 00:01:42]} Ng5 {[%clk 00:06:40]}
{[%emt 00:05:17]} 63. Rh2 {[%clk 00:18:05]} {[%emt 00:00:13]} Rg8 {[%clk
00:06:39]} {[%emt 00:00:31]} 64. Rh5 {[%clk 00:16:39]} {[%emt 00:01:55]} Kd6
{[%clk 00:07:03]} {[%emt 00:00:07]} 65. Nf3 {[%clk 00:16:14]} {[%emt 00:00:55]}
Nxf3 {[%clk 00:06:01]} {[%emt 00:01:32]} 66. Kxf3 {[%clk 00:16:40]} {[%emt
00:00:05]} Rc8 {[%clk 00:06:18]} {[%emt 00:00:13]} 67. Rh2 {[%clk 00:16:54]}
{[%emt 00:00:14]} Rc3+ {[%clk 00:06:16]} {[%emt 00:00:33]} 68. Kf4 {[%clk
00:17:19]} {[%emt 00:00:05]} e5+ {[%clk 00:06:39]} {[%emt 00:00:07]} 69. Kg5
{[%clk 00:17:37]} {[%emt 00:00:11]} e4 {[%clk 00:06:40]} {[%emt 00:00:30]} 70.
Kh6 {[%clk 00:16:38]} {[%emt 00:01:29]} Rg3 {[%clk 00:05:39]} {[%emt 00:01:31]}
71. g5 {[%clk 00:16:08]} {[%emt 00:01:00]} e3 {[%clk 00:03:58]} {[%emt
00:02:11]} 72. g6 {[%clk 00:16:27]} {[%emt 00:00:11]} Ke5 {[%clk 00:03:50]}
{[%emt 00:00:37]} 73. Kh7 {[%clk 00:16:10]} {[%emt 00:00:48]} Kf6 {[%clk
00:03:24]} {[%emt 00:00:57]} 74. Rh4 {[%clk 00:15:06]} {[%emt 00:01:33]} Rxg6
{[%clk 00:03:14]} {[%emt 00:00:39]} 75. Rh3 {[%clk 00:15:00]} {[%emt 00:00:37]}
e2 {[%clk 00:02:54]} {[%emt 00:00:50]} 76. Rf3+ {[%clk 00:15:11]} {[%emt
00:00:19]} Kg5 {[%clk 00:02:33]} {[%emt 00:00:51]} 77. Re3 {[%clk 00:15:27]}
{[%emt 00:00:13]} Rh6+ {[%clk 00:02:55]} {[%emt 00:00:09]} 78. Kg7 {[%clk
00:15:46]} {[%emt 00:00:11]} Rh2 {[%clk 00:03:18]} {[%emt 00:00:07]} 79. Kf7
{[%clk 00:15:45]} {[%emt 00:00:31]} Kf4 {[%clk 00:03:38]} {[%emt 00:00:10]} 80.
Re8 {[%clk 00:16:05]} {[%emt 00:00:11]} 0-1